{"text_format":"1","workbook":"xlsx","n_sheets":1,"sheets":["01.10.2020 "],"not_rendered":{"charts":0,"images":0,"macros":0,"external_links":0,"defined_names":1,"comments":0,"pivot_tables":0},"unopened":[],"bounds":{"document_bytes":16777216,"sheet_cells":100000,"rows_first":2000,"rows_last":500,"rows_between":2000,"halvings":0,"cell_chars":16384,"cell_head_chars":4096},"cells_cut":0,"cells_raw":0,"read":"whole","date_system":"1900"}

{"sheet":"01.10.2020 ","index":0,"n_rows":48,"n_cols":6,"rows_kept":48,"cut":false,"hidden":false,"merged":[[49,1,49,2],[0,3,0,5],[1,3,1,5],[2,3,2,5],[4,0,4,5],[43,1,43,2],[48,1,48,2]]}
[null,null,null,"Приложение №2"]
[null,null,null,"к постановлению администрации ЗАТО г.Радужный Владимирской области"]
[null,null,null,"от 23.10.2020г. № 1443"]
[]
["Сведения о фактической численности муниципальных служащих, работников казенных и бюджетных учреждений и расходы на их денежное содержание по состоянию за 9 месяцев 2020 года"]
[]
["№п/п","Код раздела (подраздела)","Наименование раздела (подраздела) расходов","Фактическая численность на 01.07.2020 года (чел.)","Годовой фонд оплаты труда с начислениями (тыс.руб.)","Исполнено за отчетный период (тыс.руб.)"]
[1,2,3,4,5,6]
[1,"0100","Общегосударственные вопросы",{"$f":"D11+D12+D13+D14+D15","v":202},{"$f":"E11+E12+E13+E14+E15","v":68118},{"$f":"F12+F13+F14+F15","v":49867}]
[null,null,"в том числе:"]
["1.1","0102","Функционирование высшего должностного лица субъекта Российской Федерации и муниципального образования"]
["1.2","0103","Функционирование законодательных (представительных) органов государственной власти и представительных органов муниципальных образований",2,1218,881]
["1.3","0104","Функционирование Правительства Российской Федерации, высших исполнительных органов государственной власти субъектов Российской Федерации, местных администраций",19,10780,7965]
["1.4","0106","Обеспечение деятельности финансовых, налоговых и таможенных органов и органов финансового (финансово-бюджетного) надзора",10,5187,3860]
["1.5","0113","Другие общегосударственные вопросы",171,50933,37161]
["2","0300","Национальная безопасность и правоохранительная деятельность, всего, в том числе",{"$f":"D18","v":5},{"$f":"E18","v":2324},{"$f":"F18","v":1705}]
[null,null,"в том числе:"]
["2.1","0309","Защита населения и территории от чрезвычайных ситуаций природного и техногенного характера, гражданская оборона",5,2324,1705]
["3.","0400","Национальная экономика",{"$f":"D21","v":39},{"$f":"E21","v":16399},{"$f":"F21","v":11523}]
[null,null,"в том числе:"]
["3.1","0409","Дорожное хозяйство (дорожные фонды)",39,16399,11523]
["4.","0500","Жилищно-коммунальное хозяйство",{"$f":"D24+D25","v":61},{"$f":"E24+E25","v":25558},18134]
[null,null,"в том числе:"]
["4.1","0503","Благоустройство",7,2714,1939]
["4.2","0505","Другие вопросы в области жилищно-коммунального хозяйства",{"$f":"53+1","v":54},22844,16195]
["5","0700","Образование",{"$f":"D28+D29+D30+D31","v":550},{"$f":"E28+E29+E30+E31","v":219492},{"$f":"F28+F29+F30+F31","v":156068}]
[null,null,"в том числе:"]
["5.1","0701","Дошкольное образование",222,84592,58753]
["5.2","0702","Общее образование ",198,89752,64716]
["5.3","0703","Дополнительное образование детей",{"$f":"46+58","v":104},35025,{"$f":"11308.46+13950.54","v":25259}]
["5.4.","0709","Другие вопросы в области образования",26,10123,7340]
["6.","0800","Культура, кинематография",{"$f":"D34+D35","v":96},{"$f":"E34+E35","v":32355},{"$f":"F34+F35","v":23770}]
[null,null,"в том числе:"]
["6.1","0801","Культура",54,21045,15361]
["6.2","0804","Другие вопросы в области культуры, кинематографии",42,11310,8409]
["7.","1000","Социальная политика",{"$f":"D38","v":2},{"$f":"E38","v":1003},{"$f":"F38","v":669}]
[null,null,"в том числе:"]
["7.1","1006","Другие вопросы в области социальной политики",2,1003,{"$f":"516+153","v":669}]
["8.","1100","Физическая культура и спорт",{"$f":"D41","v":1},{"$f":"E41","v":911},{"$f":"F41","v":458}]
[null,null,"в том числе:"]
["8.1","1103","Спорт высших достижений",1,911,458]
[null,null,"Всего:",{"$f":"D9+D16+D19+D22+D26+D32+D36+D39","v":956},{"$f":"E9+E16+E19+E22+E26+E32+E36+E39","v":366160},{"$f":"F9+F16+F19+F22+F26+F32+F36+F39","v":262194}]
[]
[null,"Заместитель главы администрации города по финансам и экономике, начальник финансового управления     ",null,null,"О.М.Горшкова"]
[]
[]
["В.Н. Милованова"]
["3-67-17"]